[Event "Titled Tuesday Blitz October 19 2021"]
[White "Garcia Ramos, Daniel"]
[Black "Bluebaum, Matthias"]
[WhiteFideId "32010311"]
[BlackFideId "24651516"]
[WhiteElo "2267"]
[BlackElo "2681"]
[Result "0-1"]
[Round "02"]
[TimeControl "180+1"]
[Date "2021.10.19"]
[WhiteClock "0:00:01"]
[BlackClock "0:01:10"]

1. e4 {[%clk 0:03:00]}  e6 {[%clk 0:02:59]} 2. d4 {[%clk 0:03:00]}  d5 {[%clk 0:03:00]} 3. Bd3 {[%clk 0:03:00]}  dxe4 {[%clk 0:02:58]} 4. Bxe4 {[%clk 0:03:00]}  Nf6 {[%clk 0:02:59]} 5. Bf3 {[%clk 0:03:01]}  c5 {[%clk 0:03:00]} 6. Ne2 {[%clk 0:03:01]}  Be7 {[%clk 0:02:59]} 7. O-O {[%clk 0:03:00]}  O-O {[%clk 0:02:56]} 8. Be3 {[%clk 0:03:00]}  Qc7 {[%clk 0:02:53]} 9. Nbc3 {[%clk 0:02:52]}  Rd8 {[%clk 0:02:52]} 10. Qc1 {[%clk 0:02:39]}  Nc6 {[%clk 0:02:47]} 11. Rd1 {[%clk 0:02:35]}  cxd4 {[%clk 0:02:31]} 12. Nxd4 {[%clk 0:02:35]}  Ne5 {[%clk 0:02:31]} 13. Be2 {[%clk 0:01:52]}  a6 {[%clk 0:02:06]} 14. h3 {[%clk 0:01:46]}  Bd7 {[%clk 0:02:03]} 15. Bf4 {[%clk 0:01:45]}  Bd6 {[%clk 0:02:04]} 16. Bg5 {[%clk 0:01:31]}  Ng6 {[%clk 0:02:01]} 17. Qe3 {[%clk 0:01:24]}  Bh2+ {[%clk 0:01:47]} 18. Kh1 {[%clk 0:01:21]}  Be5 {[%clk 0:01:44]} 19. Bf3 {[%clk 0:01:03]}  h6 {[%clk 0:01:40]} 20. Bxf6 {[%clk 0:00:57]}  Bxf6 {[%clk 0:01:41]} 21. Rd3 {[%clk 0:00:54]}  Bg5 {[%clk 0:01:37]} 22. Qe4 {[%clk 0:00:54]}  Ne5 {[%clk 0:01:33]} 23. Qxb7 {[%clk 0:00:32]}  Qxb7 {[%clk 0:01:30]} 24. Bxb7 {[%clk 0:00:33]}  Rab8 {[%clk 0:01:31]} 25. Bxa6 {[%clk 0:00:27]}  Nxd3 {[%clk 0:01:31]} 26. Bxd3 {[%clk 0:00:27]}  Rxb2 {[%clk 0:01:30]} 27. a4 {[%clk 0:00:24]}  Bf6 {[%clk 0:01:30]} 28. Nde2 {[%clk 0:00:18]}  Rc8 {[%clk 0:01:29]} 29. Ne4 {[%clk 0:00:15]}  Rb4 {[%clk 0:01:14]} 30. Nxf6+ {[%clk 0:00:14]}  gxf6 {[%clk 0:01:15]} 31. a5 {[%clk 0:00:15]}  Ra4 {[%clk 0:01:16]} 32. Rxa4 {[%clk 0:00:14]}  Bxa4 {[%clk 0:01:17]} 33. a6 {[%clk 0:00:15]}  Bxc2 {[%clk 0:01:15]} 34. Bb5 {[%clk 0:00:12]}  Be4 {[%clk 0:01:12]} 35. Nd4 {[%clk 0:00:11]}  e5 {[%clk 0:01:10]} 36. Nb3 {[%clk 0:00:09]}  Rb8 {[%clk 0:01:10]} 37. Bc4 {[%clk 0:00:05]}  Rb4 {[%clk 0:01:10]} 38. Na5 {[%clk 0:00:04]}  Ra4 {[%clk 0:01:10]} 39. a7 {[%clk 0:00:01]}  Rxa5 {[%clk 0:01:10]} 0-1


[Site "https://www.chess.com"]

[Event "Titled Tuesday Blitz October 19 2021"]
[White "Kamsky, Gata"]
[Black "Bartel, Michal"]
[WhiteFideId "2000024"]
[BlackFideId "1119257"]
[WhiteElo "2603"]
[BlackElo "2211"]
[Result "1-0"]
[Round "02"]
[TimeControl "180+1"]
[Date "2021.10.19"]
[WhiteClock "0:00:37"]
[BlackClock "0:00:21"]

1. d4 {[%clk 0:03:00]}  d6 {[%clk 0:02:57]} 2. Nf3 {[%clk 0:03:00]}  g6 {[%clk 0:02:56]} 3. c3 {[%clk 0:02:59]}  Bg7 {[%clk 0:02:56]} 4. Bg5 {[%clk 0:02:57]}  h6 {[%clk 0:02:55]} 5. Bh4 {[%clk 0:02:56]}  Nf6 {[%clk 0:02:51]} 6. Nbd2 {[%clk 0:02:55]}  Bf5 {[%clk 0:02:51]} 7. e3 {[%clk 0:02:50]}  c6 {[%clk 0:02:50]} 8. Be2 {[%clk 0:02:43]}  O-O {[%clk 0:02:49]} 9. O-O {[%clk 0:02:40]}  Nbd7 {[%clk 0:02:48]} 10. Qb3 {[%clk 0:02:35]}  Qb6 {[%clk 0:02:43]} 11. Nc4 {[%clk 0:02:32]}  Qxb3 {[%clk 0:02:43]} 12. axb3 {[%clk 0:02:32]}  Rfe8 {[%clk 0:02:35]} 13. Na5 {[%clk 0:02:30]}  Rab8 {[%clk 0:02:34]} 14. Nd2 {[%clk 0:02:26]}  g5 {[%clk 0:02:31]} 15. Bg3 {[%clk 0:02:26]}  Ne4 {[%clk 0:02:21]} 16. Nxe4 {[%clk 0:02:25]}  Bxe4 {[%clk 0:02:22]} 17. b4 {[%clk 0:02:23]}  a6 {[%clk 0:02:19]} 18. Rfd1 {[%clk 0:02:21]}  Red8 {[%clk 0:01:37]} 19. f3 {[%clk 0:02:01]}  Bg6 {[%clk 0:01:37]} 20. e4 {[%clk 0:02:00]}  f5 {[%clk 0:01:34]} 21. exf5 {[%clk 0:01:56]}  Bxf5 {[%clk 0:01:34]} 22. Nc4 {[%clk 0:01:55]}  Nf6 {[%clk 0:01:30]} 23. Ne3 {[%clk 0:01:52]}  Bg6 {[%clk 0:01:30]} 24. Re1 {[%clk 0:01:51]}  Kh7 {[%clk 0:01:30]} 25. Bc4 {[%clk 0:01:48]}  Re8 {[%clk 0:01:29]} 26. Be6 {[%clk 0:01:40]}  Nh5 {[%clk 0:01:28]} 27. d5 {[%clk 0:01:28]}  cxd5 {[%clk 0:01:12]} 28. Nxd5 {[%clk 0:01:28]}  Nxg3 {[%clk 0:01:08]} 29. hxg3 {[%clk 0:01:27]}  Bf6 {[%clk 0:01:00]} 30. Nxf6+ {[%clk 0:01:17]}  exf6 {[%clk 0:01:01]} 31. Rad1 {[%clk 0:01:12]}  Rbd8 {[%clk 0:01:00]} 32. Bd5 {[%clk 0:01:11]}  Rxe1+ {[%clk 0:00:58]} 33. Rxe1 {[%clk 0:01:11]}  Rd7 {[%clk 0:00:59]} 34. Kf2 {[%clk 0:01:06]}  Kg7 {[%clk 0:00:59]} 35. Rd1 {[%clk 0:01:03]}  Bf7 {[%clk 0:00:57]} 36. Be4 {[%clk 0:00:59]}  Be6 {[%clk 0:00:57]} 37. g4 {[%clk 0:00:57]}  d5 {[%clk 0:00:55]} 38. Bc2 {[%clk 0:00:57]}  Rc7 {[%clk 0:00:51]} 39. Ke3 {[%clk 0:00:55]}  Kf7 {[%clk 0:00:46]} 40. Bd3 {[%clk 0:00:54]}  Rc8 {[%clk 0:00:41]} 41. Rh1 {[%clk 0:00:52]}  Kg7 {[%clk 0:00:41]} 42. Kd4 {[%clk 0:00:52]}  Rc7 {[%clk 0:00:39]} 43. Ra1 {[%clk 0:00:51]}  Rc8 {[%clk 0:00:32]} 44. b5 {[%clk 0:00:50]}  axb5 {[%clk 0:00:33]} 45. Ra7 {[%clk 0:00:50]}  Rc7 {[%clk 0:00:34]} 46. Bxb5 {[%clk 0:00:50]}  Rf7 {[%clk 0:00:33]} 47. Bd3 {[%clk 0:00:48]}  h5 {[%clk 0:00:30]} 48. gxh5 {[%clk 0:00:47]}  g4 {[%clk 0:00:31]} 49. f4 {[%clk 0:00:47]}  f5 {[%clk 0:00:27]} 50. Ra8 {[%clk 0:00:46]}  Re7 {[%clk 0:00:24]} 51. Rd8 {[%clk 0:00:44]}  Kh6 {[%clk 0:00:24]} 52. g3 {[%clk 0:00:42]}  Kxh5 {[%clk 0:00:24]} 53. Ke5 {[%clk 0:00:39]}  Kg6 {[%clk 0:00:24]} 54. Kd6 {[%clk 0:00:39]}  Kf7 {[%clk 0:00:23]} 55. Rh8 {[%clk 0:00:38]}  Rd7+ {[%clk 0:00:22]} 56. Ke5 {[%clk 0:00:38]}  d4 {[%clk 0:00:23]} 57. Rh7+ {[%clk 0:00:38]}  Ke8 {[%clk 0:00:21]} 58. Bb5 {[%clk 0:00:37]} 1-0


[Site "https://www.chess.com"]

[Event "Titled Tuesday Blitz October 19 2021"]
[White "Kovalev, Vladislav"]
[Black "Padmini, Rout"]
[WhiteFideId "13504398"]
[BlackFideId "5029295"]
[WhiteElo "2573"]
[BlackElo "2196"]
[Result "1-0"]
[Round "02"]
[TimeControl "180+1"]
[Date "2021.10.19"]
[WhiteClock "0:00:20"]
[BlackClock "0:00:01"]

1. e4 {[%clk 0:03:00]}  e5 {[%clk 0:02:59]} 2. Nf3 {[%clk 0:03:01]}  Nc6 {[%clk 0:02:59]} 3. Bb5 {[%clk 0:03:01]}  a6 {[%clk 0:02:59]} 4. Ba4 {[%clk 0:03:01]}  Nf6 {[%clk 0:02:58]} 5. O-O {[%clk 0:03:02]}  b5 {[%clk 0:02:59]} 6. Bb3 {[%clk 0:03:02]}  Bb7 {[%clk 0:02:59]} 7. d3 {[%clk 0:03:01]}  Be7 {[%clk 0:02:57]} 8. a3 {[%clk 0:03:00]}  O-O {[%clk 0:02:57]} 9. Nc3 {[%clk 0:03:00]}  d6 {[%clk 0:02:51]} 10. Re1 {[%clk 0:02:59]}  Nb8 {[%clk 0:02:44]} 11. Ne2 {[%clk 0:02:58]}  Nbd7 {[%clk 0:02:43]} 12. Ng3 {[%clk 0:02:58]}  Nc5 {[%clk 0:02:42]} 13. Ba2 {[%clk 0:02:58]}  Re8 {[%clk 0:02:36]} 14. h3 {[%clk 0:02:41]}  Bf8 {[%clk 0:02:33]} 15. Be3 {[%clk 0:02:41]}  Ne6 {[%clk 0:02:26]} 16. Qd2 {[%clk 0:02:36]}  g6 {[%clk 0:02:23]} 17. Ng5 {[%clk 0:02:27]}  c5 {[%clk 0:02:19]} 18. Nxe6 {[%clk 0:02:21]}  fxe6 {[%clk 0:02:19]} 19. b4 {[%clk 0:02:14]}  cxb4 {[%clk 0:02:04]} 20. axb4 {[%clk 0:02:14]}  d5 {[%clk 0:01:56]} 21. Bg5 {[%clk 0:02:04]}  Bg7 {[%clk 0:01:51]} 22. Bb3 {[%clk 0:01:32]}  Kh8 {[%clk 0:01:28]} 23. Re2 {[%clk 0:01:32]}  Qd6 {[%clk 0:01:12]} 24. Rae1 {[%clk 0:01:30]}  d4 {[%clk 0:00:38]} 25. f4 {[%clk 0:01:22]}  Nd7 {[%clk 0:00:38]} 26. f5 {[%clk 0:01:16]}  exf5 {[%clk 0:00:22]} 27. exf5 {[%clk 0:01:16]}  Rac8 {[%clk 0:00:18]} 28. Rf1 {[%clk 0:01:10]}  Nf6 {[%clk 0:00:14]} 29. Bxf6 {[%clk 0:01:07]}  Qxf6 {[%clk 0:00:12]} 30. Be6 {[%clk 0:00:31]}  Rc7 {[%clk 0:00:11]} 31. Ne4 {[%clk 0:00:31]}  Bxe4 {[%clk 0:00:08]} 32. Rxe4 {[%clk 0:00:32]}  Rf8 {[%clk 0:00:08]} 33. Rf3 {[%clk 0:00:29]}  gxf5 {[%clk 0:00:06]} 34. Bxf5 {[%clk 0:00:29]}  Rcf7 {[%clk 0:00:05]} 35. Bg4 {[%clk 0:00:24]}  Qh6 {[%clk 0:00:04]} 36. Qxh6 {[%clk 0:00:23]}  Bxh6 {[%clk 0:00:05]} 37. Rxe5 {[%clk 0:00:22]}  Be3+ {[%clk 0:00:04]} 38. Kf1 {[%clk 0:00:22]}  Bd2 {[%clk 0:00:04]} 39. Re6 {[%clk 0:00:20]}  Bxb4 {[%clk 0:00:03]} 40. Rxa6 {[%clk 0:00:20]}  Bd2 {[%clk 0:00:03]} 41. Rd6 {[%clk 0:00:19]}  Be3 {[%clk 0:00:03]} 42. Ke2 {[%clk 0:00:19]}  Rxf3 {[%clk 0:00:02]} 43. Bxf3 {[%clk 0:00:20]}  b4 {[%clk 0:00:02]} 44. Rb6 {[%clk 0:00:19]}  Rc8 {[%clk 0:00:02]} 45. Bc6 {[%clk 0:00:19]}  Kg7 {[%clk 0:00:01]} 46. Kf3 {[%clk 0:00:20]}  Bd2 {[%clk 0:00:01]} 47. Ke4 {[%clk 0:00:20]} 1-0


[Site "https://www.chess.com"]

[Event "Titled Tuesday Blitz October 19 2021"]
[White "Lagunow, Raphael"]
[Black "Kezin, Roman"]
[WhiteFideId "24652644"]
[BlackFideId "24124621"]
[WhiteElo "2400"]
[BlackElo "2557"]
[Result "0-1"]
[Round "02"]
[TimeControl "180+1"]
[Date "2021.10.19"]
[WhiteClock "0:00:06"]
[BlackClock "0:00:22"]

1. e4 {[%clk 0:03:00]}  c5 {[%clk 0:02:59]} 2. Nf3 {[%clk 0:02:59]}  b6 {[%clk 0:03:00]} 3. d4 {[%clk 0:02:58]}  cxd4 {[%clk 0:03:01]} 4. Nxd4 {[%clk 0:02:59]}  Bb7 {[%clk 0:03:01]} 5. Bd3 {[%clk 0:02:58]}  e6 {[%clk 0:02:59]} 6. O-O {[%clk 0:02:58]}  a6 {[%clk 0:03:00]} 7. c4 {[%clk 0:02:56]}  Qc7 {[%clk 0:03:00]} 8. Nc3 {[%clk 0:02:56]}  Nf6 {[%clk 0:03:00]} 9. Qe2 {[%clk 0:02:53]}  Bc5 {[%clk 0:02:46]} 10. Nc2 {[%clk 0:02:48]}  Nc6 {[%clk 0:02:43]} 11. Be3 {[%clk 0:02:44]}  d6 {[%clk 0:02:38]} 12. f4 {[%clk 0:02:26]}  O-O {[%clk 0:02:23]} 13. Rad1 {[%clk 0:02:21]}  Rad8 {[%clk 0:02:18]} 14. a3 {[%clk 0:02:01]}  e5 {[%clk 0:02:07]} 15. fxe5 {[%clk 0:01:38]}  Nxe5 {[%clk 0:02:03]} 16. Nd4 {[%clk 0:01:27]}  Nfg4 {[%clk 0:01:55]} 17. Nd5 {[%clk 0:00:39]}  Bxd5 {[%clk 0:01:53]} 18. exd5 {[%clk 0:00:39]}  Rde8 {[%clk 0:01:46]} 19. Bf2 {[%clk 0:00:20]}  Nxf2 {[%clk 0:01:38]} 20. Qxf2 {[%clk 0:00:21]}  Ng4 {[%clk 0:01:36]} 21. Qf4 {[%clk 0:00:20]}  Ne3 {[%clk 0:01:34]} 22. Qh4 {[%clk 0:00:14]}  g6 {[%clk 0:01:34]} 23. Kh1 {[%clk 0:00:14]}  Nxd1 {[%clk 0:01:33]} 24. Rxd1 {[%clk 0:00:15]}  Qe7 {[%clk 0:01:32]} 25. Nf3 {[%clk 0:00:14]}  Qxh4 {[%clk 0:01:32]} 26. Nxh4 {[%clk 0:00:15]}  Re3 {[%clk 0:01:32]} 27. Nf3 {[%clk 0:00:15]}  Rfe8 {[%clk 0:01:32]} 28. b4 {[%clk 0:00:15]}  Bd4 {[%clk 0:01:24]} 29. h4 {[%clk 0:00:15]}  Bb2 {[%clk 0:01:22]} 30. a4 {[%clk 0:00:15]}  Ba3 {[%clk 0:01:22]} 31. b5 {[%clk 0:00:15]}  a5 {[%clk 0:01:23]} 32. Kg1 {[%clk 0:00:12]}  Bc5 {[%clk 0:01:23]} 33. Kf1 {[%clk 0:00:13]}  Kg7 {[%clk 0:01:20]} 34. Rd2 {[%clk 0:00:13]}  Bb4 {[%clk 0:01:19]} 35. Rd1 {[%clk 0:00:13]}  h6 {[%clk 0:01:20]} 36. Kf2 {[%clk 0:00:12]}  Bc5 {[%clk 0:01:19]} 37. Kg3 {[%clk 0:00:12]}  f5 {[%clk 0:01:19]} 38. h5 {[%clk 0:00:12]}  gxh5 {[%clk 0:00:59]} 39. Bxf5 {[%clk 0:00:11]}  Kf6 {[%clk 0:01:00]} 40. Bd3 {[%clk 0:00:11]}  Rg8+ {[%clk 0:00:59]} 41. Kh3 {[%clk 0:00:11]}  h4 {[%clk 0:00:58]} 42. Rf1 {[%clk 0:00:10]}  Ke7 {[%clk 0:00:53]} 43. Bf5 {[%clk 0:00:07]}  Bd4 {[%clk 0:00:49]} 44. Rd1 {[%clk 0:00:06]}  Be5 {[%clk 0:00:46]} 45. Rd2 {[%clk 0:00:03]}  Bf6 {[%clk 0:00:41]} 46. Be6 {[%clk 0:00:02]}  Rg7 {[%clk 0:00:36]} 47. Kh2 {[%clk 0:00:02]}  h5 {[%clk 0:00:36]} 48. Kh3 {[%clk 0:00:02]}  Re4 {[%clk 0:00:32]} 49. Kh2 {[%clk 0:00:03]}  Rxc4 {[%clk 0:00:32]} 50. Re2 {[%clk 0:00:03]}  Kd8 {[%clk 0:00:31]} 51. Bf5 {[%clk 0:00:04]}  Re7 {[%clk 0:00:30]} 52. Be6 {[%clk 0:00:03]}  Rxa4 {[%clk 0:00:30]} 53. Rc2 {[%clk 0:00:04]}  Rc7 {[%clk 0:00:28]} 54. Rc6 {[%clk 0:00:04]}  Rxc6 {[%clk 0:00:28]} 55. dxc6 {[%clk 0:00:04]}  Rb4 {[%clk 0:00:26]} 56. Nd2 {[%clk 0:00:04]}  Rxb5 {[%clk 0:00:25]} 57. Ne4 {[%clk 0:00:05]}  Be7 {[%clk 0:00:25]} 58. Kh3 {[%clk 0:00:04]}  Rc5 {[%clk 0:00:25]} 59. Bd7 {[%clk 0:00:05]}  a4 {[%clk 0:00:25]} 60. Nxc5 {[%clk 0:00:05]}  bxc5 {[%clk 0:00:25]} 61. Be6 {[%clk 0:00:06]}  Kc7 {[%clk 0:00:24]} 62. Bd5 {[%clk 0:00:07]}  Bf6 {[%clk 0:00:24]} 63. Kh2 {[%clk 0:00:07]}  Kb6 {[%clk 0:00:25]} 64. Kh3 {[%clk 0:00:08]}  Bd8 {[%clk 0:00:24]} 65. g3 {[%clk 0:00:07]}  hxg3 {[%clk 0:00:23]} 66. Kxg3 {[%clk 0:00:08]}  Kb5 {[%clk 0:00:23]} 67. Kf4 {[%clk 0:00:08]}  c4 {[%clk 0:00:23]} 68. Be4 {[%clk 0:00:08]}  Kc5 {[%clk 0:00:24]} 69. Bc2 {[%clk 0:00:08]}  d5 {[%clk 0:00:24]} 70. Bxa4 {[%clk 0:00:08]}  d4 {[%clk 0:00:24]} 71. Ke4 {[%clk 0:00:08]}  h4 {[%clk 0:00:22]} 72. Kf3 {[%clk 0:00:08]}  Bc7 {[%clk 0:00:21]} 73. Kg2 {[%clk 0:00:07]}  d3 {[%clk 0:00:21]} 74. Bd1 {[%clk 0:00:07]}  c3 {[%clk 0:00:21]} 75. Kh3 {[%clk 0:00:06]}  c2 {[%clk 0:00:21]} 76. Bxc2 {[%clk 0:00:06]}  dxc2 {[%clk 0:00:22]} 0-1


[Site "https://www.chess.com"]

[Event "Titled Tuesday Blitz October 19 2021"]
[White "Lazavik, Denis"]
[Black "Williams, Simon K"]
[WhiteFideId "13515110"]
[BlackFideId "404454"]
[WhiteElo "2436"]
[BlackElo "2468"]
[Result "1-0"]
[Round "02"]
[TimeControl "180+1"]
[Date "2021.10.19"]
[WhiteClock "0:00:08"]
[BlackClock "0:00:07"]

1. d4 {[%clk 0:03:00]}  e6 {[%clk 0:02:58]} 2. Nf3 {[%clk 0:02:57]}  f5 {[%clk 0:02:58]} 3. g3 {[%clk 0:02:52]}  Nf6 {[%clk 0:02:57]} 4. Bg2 {[%clk 0:02:52]}  Be7 {[%clk 0:02:57]} 5. O-O {[%clk 0:02:53]}  O-O {[%clk 0:02:57]} 6. c4 {[%clk 0:02:50]}  d6 {[%clk 0:02:57]} 7. b3 {[%clk 0:02:50]}  Ne4 {[%clk 0:02:57]} 8. Bb2 {[%clk 0:02:49]}  Bf6 {[%clk 0:02:56]} 9. Nbd2 {[%clk 0:02:47]}  Nc6 {[%clk 0:02:56]} 10. Ne1 {[%clk 0:02:42]}  Nxd2 {[%clk 0:02:53]} 11. Qxd2 {[%clk 0:02:41]}  e5 {[%clk 0:02:53]} 12. Bd5+ {[%clk 0:02:26]}  Kh8 {[%clk 0:02:52]} 13. Bxc6 {[%clk 0:02:25]}  bxc6 {[%clk 0:02:51]} 14. dxe5 {[%clk 0:02:25]}  dxe5 {[%clk 0:02:08]} 15. Qxd8 {[%clk 0:02:26]}  Rxd8 {[%clk 0:02:07]} 16. Nd3 {[%clk 0:02:24]}  Re8 {[%clk 0:02:08]} 17. Rad1 {[%clk 0:02:15]}  e4 {[%clk 0:01:42]} 18. Ne5 {[%clk 0:01:45]}  Be6 {[%clk 0:01:39]} 19. Rd2 {[%clk 0:01:24]}  Bxe5 {[%clk 0:01:11]} 20. Bxe5 {[%clk 0:01:23]}  Rac8 {[%clk 0:01:10]} 21. Bc3 {[%clk 0:01:02]}  Kg8 {[%clk 0:01:07]} 22. Rfd1 {[%clk 0:01:00]}  Kf7 {[%clk 0:01:06]} 23. f3 {[%clk 0:00:58]}  exf3 {[%clk 0:00:58]} 24. exf3 {[%clk 0:00:59]}  g5 {[%clk 0:00:46]} 25. Kf2 {[%clk 0:00:58]}  a6 {[%clk 0:00:43]} 26. Rd4 {[%clk 0:00:41]}  Ra8 {[%clk 0:00:32]} 27. h4 {[%clk 0:00:39]}  h6 {[%clk 0:00:23]} 28. Ba5 {[%clk 0:00:38]}  Rac8 {[%clk 0:00:19]} 29. Bb4 {[%clk 0:00:21]}  Kg6 {[%clk 0:00:19]} 30. Re1 {[%clk 0:00:18]}  Kf7 {[%clk 0:00:16]} 31. hxg5 {[%clk 0:00:15]}  hxg5 {[%clk 0:00:16]} 32. Bd2 {[%clk 0:00:16]}  Kg6 {[%clk 0:00:15]} 33. Re5 {[%clk 0:00:16]}  Bf7 {[%clk 0:00:13]} 34. Rxe8 {[%clk 0:00:12]}  Rxe8 {[%clk 0:00:14]} 35. Rd7 {[%clk 0:00:13]}  Rh8 {[%clk 0:00:15]} 36. Rxc7 {[%clk 0:00:12]}  Rh2+ {[%clk 0:00:14]} 37. Ke3 {[%clk 0:00:12]}  f4+ {[%clk 0:00:12]} 38. gxf4 {[%clk 0:00:13]}  gxf4+ {[%clk 0:00:12]} 39. Kd3 {[%clk 0:00:13]}  Be6 {[%clk 0:00:11]} 40. Rxc6 {[%clk 0:00:11]}  Kf5 {[%clk 0:00:11]} 41. Rc5+ {[%clk 0:00:11]}  Kf6 {[%clk 0:00:10]} 42. Bxf4 {[%clk 0:00:11]}  Rxa2 {[%clk 0:00:10]} 43. Kc3 {[%clk 0:00:11]}  Ra1 {[%clk 0:00:09]} 44. Be5+ {[%clk 0:00:10]}  Ke7 {[%clk 0:00:08]} 45. Rc7+ {[%clk 0:00:10]}  Kd8 {[%clk 0:00:08]} 46. f4 {[%clk 0:00:11]}  Bf5 {[%clk 0:00:07]} 47. Kb4 {[%clk 0:00:10]}  Bd7 {[%clk 0:00:07]} 48. Ra7 {[%clk 0:00:09]}  Ke7 {[%clk 0:00:06]} 49. Kc5 {[%clk 0:00:10]}  Ke6 {[%clk 0:00:06]} 50. b4 {[%clk 0:00:10]}  Rc1 {[%clk 0:00:06]} 51. Rxa6+ {[%clk 0:00:06]}  Kf5 {[%clk 0:00:06]} 52. Rf6+ {[%clk 0:00:06]}  Ke4 {[%clk 0:00:06]} 53. b5 {[%clk 0:00:07]}  Bg4 {[%clk 0:00:06]} 54. b6 {[%clk 0:00:06]}  Be2 {[%clk 0:00:06]} 55. b7 {[%clk 0:00:06]}  Rxc4+ {[%clk 0:00:07]} 56. Kd6 {[%clk 0:00:07]}  Rb4 {[%clk 0:00:07]} 57. Kc7 {[%clk 0:00:07]}  Rc4+ {[%clk 0:00:07]} 58. Rc6 {[%clk 0:00:08]}  Rb4 {[%clk 0:00:07]} 59. b8=Q {[%clk 0:00:08]} 1-0


[Site "https://www.chess.com"]

[Event "Titled Tuesday Blitz October 19 2021"]
[White "Nogerbek, Kazybek"]
[Black "Nozdrachev, Leonid"]
[WhiteFideId "13710427"]
[BlackFideId "24113433"]
[WhiteElo "2436"]
[BlackElo "2124"]
[Result "1-0"]
[Round "02"]
[TimeControl "180+1"]
[Date "2021.10.19"]
[WhiteClock "0:00:18"]
[BlackClock "0:00:04"]

1. d4 {[%clk 0:03:00]}  Nf6 {[%clk 0:02:57]} 2. c4 {[%clk 0:03:01]}  e6 {[%clk 0:02:57]} 3. Nc3 {[%clk 0:03:01]}  Bb4 {[%clk 0:02:57]} 4. Qc2 {[%clk 0:03:02]}  O-O {[%clk 0:02:56]} 5. a3 {[%clk 0:03:00]}  Bxc3+ {[%clk 0:02:55]} 6. Qxc3 {[%clk 0:03:01]}  b5 {[%clk 0:02:54]} 7. cxb5 {[%clk 0:03:00]}  c6 {[%clk 0:02:55]} 8. g3 {[%clk 0:02:47]}  Bb7 {[%clk 0:02:53]} 9. Bg2 {[%clk 0:02:47]}  Qb6 {[%clk 0:02:46]} 10. Nf3 {[%clk 0:02:42]}  Ne4 {[%clk 0:02:39]} 11. Qe3 {[%clk 0:02:36]}  cxb5 {[%clk 0:02:37]} 12. O-O {[%clk 0:02:36]}  Nd6 {[%clk 0:02:33]} 13. Qf4 {[%clk 0:02:30]}  Nf5 {[%clk 0:02:26]} 14. e4 {[%clk 0:02:15]}  Nxd4 {[%clk 0:02:21]} 15. Nxd4 {[%clk 0:02:15]}  Qxd4 {[%clk 0:02:22]} 16. Be3 {[%clk 0:02:16]}  Qxb2 {[%clk 0:02:12]} 17. Rad1 {[%clk 0:02:14]}  Qf6 {[%clk 0:01:39]} 18. Qd6 {[%clk 0:01:42]}  Nc6 {[%clk 0:01:16]} 19. Qxd7 {[%clk 0:01:39]}  Rab8 {[%clk 0:01:13]} 20. Bf4 {[%clk 0:01:32]}  e5 {[%clk 0:01:08]} 21. Be3 {[%clk 0:01:14]}  Nd4 {[%clk 0:01:07]} 22. Bxd4 {[%clk 0:00:56]}  exd4 {[%clk 0:01:08]} 23. e5 {[%clk 0:00:55]}  Qb6 {[%clk 0:00:58]} 24. Qxd4 {[%clk 0:00:49]}  Bxg2 {[%clk 0:00:51]} 25. Kxg2 {[%clk 0:00:49]}  Qxd4 {[%clk 0:00:38]} 26. Rxd4 {[%clk 0:00:50]}  Rfd8 {[%clk 0:00:38]} 27. Rf4 {[%clk 0:00:37]}  Rd5 {[%clk 0:00:34]} 28. Rc1 {[%clk 0:00:37]}  Rxe5 {[%clk 0:00:25]} 29. Rc7 {[%clk 0:00:37]}  Rf8 {[%clk 0:00:20]} 30. Rxa7 {[%clk 0:00:37]}  g6 {[%clk 0:00:16]} 31. Rb4 {[%clk 0:00:30]}  Rc5 {[%clk 0:00:14]} 32. Ra5 {[%clk 0:00:30]}  Rfc8 {[%clk 0:00:08]} 33. Raxb5 {[%clk 0:00:26]}  Rxb5 {[%clk 0:00:09]} 34. Rxb5 {[%clk 0:00:27]}  Rc3 {[%clk 0:00:08]} 35. a4 {[%clk 0:00:25]}  Ra3 {[%clk 0:00:09]} 36. Rb4 {[%clk 0:00:26]}  h5 {[%clk 0:00:08]} 37. h4 {[%clk 0:00:23]}  Ra2 {[%clk 0:00:08]} 38. Kf3 {[%clk 0:00:23]}  Kg7 {[%clk 0:00:08]} 39. Ke3 {[%clk 0:00:23]}  f6 {[%clk 0:00:08]} 40. f3 {[%clk 0:00:19]}  Ra3+ {[%clk 0:00:03]} 41. Ke4 {[%clk 0:00:20]}  Ra1 {[%clk 0:00:01]} 42. Kd5 {[%clk 0:00:20]}  g5 {[%clk 0:00:02]} 43. Kc6 {[%clk 0:00:17]}  gxh4 {[%clk 0:00:01]} 44. gxh4 {[%clk 0:00:14]}  Ra3 {[%clk 0:00:01]} 45. Rf4 {[%clk 0:00:14]}  Kf7 {[%clk 0:00:01]} 46. Kb5 {[%clk 0:00:12]}  Ke6 {[%clk 0:00:01]} 47. a5 {[%clk 0:00:12]}  Ke5 {[%clk 0:00:01]} 48. Ra4 {[%clk 0:00:13]}  Rxf3 {[%clk 0:00:01]} 49. a6 {[%clk 0:00:13]}  Rg3 {[%clk 0:00:01]} 50. a7 {[%clk 0:00:13]}  Rg8 {[%clk 0:00:02]} 51. a8=Q {[%clk 0:00:12]}  Rxa8 {[%clk 0:00:02]} 52. Rxa8 {[%clk 0:00:13]}  Kf4 {[%clk 0:00:02]} 53. Kc5 {[%clk 0:00:13]}  Kg3 {[%clk 0:00:02]} 54. Ra4 {[%clk 0:00:13]}  f5 {[%clk 0:00:02]} 55. Kd5 {[%clk 0:00:14]}  f4 {[%clk 0:00:02]} 56. Ke4 {[%clk 0:00:15]}  f3 {[%clk 0:00:02]} 57. Ra3 {[%clk 0:00:15]}  Kxh4 {[%clk 0:00:02]} 58. Kxf3 {[%clk 0:00:15]}  Kh3 {[%clk 0:00:02]} 59. Kf2+ {[%clk 0:00:16]}  Kg4 {[%clk 0:00:02]} 60. Kg2 {[%clk 0:00:16]}  h4 {[%clk 0:00:03]} 61. Ra4+ {[%clk 0:00:16]}  Kg5 {[%clk 0:00:03]} 62. Kh3 {[%clk 0:00:17]}  Kf6 {[%clk 0:00:04]} 63. Kxh4 {[%clk 0:00:18]} 1-0


[Site "https://www.chess.com"]

[Event "Titled Tuesday Blitz October 19 2021"]
[White "Obolenskikh, Dmitry"]
[Black "Seul, Georg"]
[WhiteFideId "4156013"]
[BlackFideId "4601653"]
[WhiteElo "2541"]
[BlackElo "2332"]
[Result "1-0"]
[Round "02"]
[TimeControl "180+1"]
[Date "2021.10.19"]
[WhiteClock "0:01:03"]
[BlackClock "0:00:01"]

1. Nf3 {[%clk 0:03:00]}  Nf6 {[%clk 0:02:59]} 2. c4 {[%clk 0:03:00]}  e6 {[%clk 0:02:58]} 3. Nc3 {[%clk 0:03:00]}  Bb4 {[%clk 0:02:58]} 4. Qc2 {[%clk 0:02:59]}  d6 {[%clk 0:02:58]} 5. e3 {[%clk 0:02:58]}  Nbd7 {[%clk 0:02:55]} 6. b3 {[%clk 0:02:57]}  e5 {[%clk 0:02:52]} 7. Bb2 {[%clk 0:02:58]}  O-O {[%clk 0:02:50]} 8. Rg1 {[%clk 0:02:55]}  Nc5 {[%clk 0:02:32]} 9. h3 {[%clk 0:02:50]}  a5 {[%clk 0:02:25]} 10. g4 {[%clk 0:02:25]}  Bxc3 {[%clk 0:02:22]} 11. Bxc3 {[%clk 0:02:20]}  Nfe4 {[%clk 0:02:15]} 12. Bb2 {[%clk 0:02:20]}  f5 {[%clk 0:02:14]} 13. g5 {[%clk 0:02:13]}  f4 {[%clk 0:01:50]} 14. Be2 {[%clk 0:02:12]}  fxe3 {[%clk 0:01:49]} 15. fxe3 {[%clk 0:02:12]}  a4 {[%clk 0:00:51]} 16. d3 {[%clk 0:02:06]}  a3 {[%clk 0:00:47]} 17. Bc1 {[%clk 0:02:01]}  Bf5 {[%clk 0:00:46]} 18. b4 {[%clk 0:01:55]}  Bg6 {[%clk 0:00:16]} 19. bxc5 {[%clk 0:01:54]}  Nxc5 {[%clk 0:00:16]} 20. e4 {[%clk 0:01:54]}  c6 {[%clk 0:00:15]} 21. Be3 {[%clk 0:01:54]}  Ne6 {[%clk 0:00:11]} 22. Rb1 {[%clk 0:01:51]}  d5 {[%clk 0:00:10]} 23. Nxe5 {[%clk 0:01:43]}  dxe4 {[%clk 0:00:07]} 24. Nxg6 {[%clk 0:01:41]}  hxg6 {[%clk 0:00:06]} 25. Rxb7 {[%clk 0:01:39]}  Qd6 {[%clk 0:00:03]} 26. dxe4 {[%clk 0:01:23]}  Nd4 {[%clk 0:00:02]} 27. Bxd4 {[%clk 0:01:03]}  Qxd4 {[%clk 0:00:01]} 28. Rg2 {[%clk 0:01:03]} 1-0


[Site "https://www.chess.com"]